bitfinex/quotes_BTCUSD_20241028
["timestamp","ask_amount","ask_price","bid_price","bid_amount"]
[1730123035520,0.288919,69224.0,69203.0,0.21895699]
[1730123035521,0.16858243,69211.0,69209.0,0.144489]
[1730123035749,0.16858243,69211.0,69207.0,0.001648]
[1730123035750,0.16858243,69210.0,69207.0,0.001648]
[1730123036034,0.149491,69208.0,69207.0,0.001648]
[1730123036256,0.149491,69208.0,69203.0,0.001646]
[1730123036257,0.1725,69204.0,69203.0,0.001646]
[1730123036486,0.149512,69198.0,69197.0,0.21731099]
[1730123036716,0.40877586,69198.0,69197.0,0.21731099]
[1730123036951,0.005,69189.0,69188.0,0.21731099]
[1730123037191,0.39491343,69189.0,69188.0,0.21731099]
[1730123037440,0.25038243,69189.0,69188.0,0.21731099]
[1730123037648,0.25038243,69189.0,69182.0,0.144545]
[1730123037649,0.005,69188.0,69182.0,0.144545]
[1730123038089,0.25038243,69189.0,69180.0,0.2891]
[1730123038320,0.40088624,69189.0,69180.0,0.2891]
[1730123038541,0.54541824,69189.0,69188.0,0.001]
[1730123038763,0.47946928,69189.0,69188.0,0.001]
[1730123038981,0.47946928,69189.0,69188.0,0.00095]
[1730123039210,0.33493728,69189.0,69188.0,0.00095]
[1730123039444,0.47946828,69189.0,69188.0,0.00095]
[1730123039892,0.005,69183.0,69182.0,0.21731099]
[1730123040408,0.15550381,69188.0,69180.0,0.145549]
[1730123040659,0.02264811,69194.0,69183.0,0.002]
[1730123040886,0.02264811,69194.0,69193.0,0.144523]
[1730123041098,0.21731099,69200.0,69192.0,0.28905]
[1730123041328,0.21731099,69200.0,69199.0,0.14451]
[1730123041600,0.00657174,69199.0,69189.0,0.005]
[1730123041828,0.25313728,69197.0,69192.0,0.144524]
[1730123042040,0.25313728,69197.0,69192.0,0.144523]
[1730123042302,0.007,69194.0,69193.0,0.001]
[1730123042528,0.007,69194.0,69192.0,0.144523]
[1730123042739,0.007,69194.0,69189.0,0.294063]
[1730123042965,0.009,69194.0,69190.0,0.289058]
[1730123043181,0.00775991,69193.0,69192.0,0.144525]
[1730123043434,0.009,69194.0,69191.0,0.289054]
[1730123043435,0.007,69194.0,69191.0,0.289054]
[1730123043645,0.007,69199.0,69193.0,0.002]
[1730123043868,0.21731099,69206.0,69193.0,0.002]
[1730123044095,0.21731099,69206.0,69197.0,0.144514]
[1730123044096,0.00751455,69198.0,69197.0,0.144514]
[1730123044337,0.005,69208.0,69200.0,0.144506]
[1730123044547,0.005,69208.0,69194.0,0.289042]
[1730123044548,0.15550381,69208.0,69193.0,0.002]
[1730123044845,0.00751484,69207.0,69206.0,0.144496]
[1730123045044,0.00751484,69207.0,69206.0,0.146496]
[1730123045271,0.000824,69211.0,69210.0,0.146487]
[1730123045551,0.000824,69211.0,69210.0,0.144487]
[1730123046675,0.02910965,69211.0,69210.0,0.145487]
[1730123047125,0.03110965,69211.0,69210.0,0.146487]
[1730123048060,0.03110965,69211.0,69210.0,0.002]
[1730123048273,0.03870035,69211.0,69210.0,0.002]
[1730123048487,0.03110965,69211.0,69210.0,0.146487]
[1730123048696,0.03870042,69211.0,69210.0,0.146487]
[1730123049179,0.01761762,69211.0,69210.0,0.17066096]
[1730123049371,0.006824,69211.0,69210.0,0.17066096]
[1730123049584,0.006824,69211.0,69210.0,0.153487]
[1730123050047,0.000824,69211.0,69210.0,0.149487]
[1730123050288,0.002824,69211.0,69210.0,0.15237641]
[1730123050512,0.004824,69211.0,69210.0,0.15737641]
[1730123050760,0.002824,69211.0,69210.0,0.15737641]
[1730123050994,0.002824,69211.0,69210.0,0.30788022]
[1730123051253,0.002824,69211.0,69210.0,0.15737641]
[1730123051501,0.002824,69211.0,69205.0,0.149496]
[1730123051732,0.002824,69211.0,69195.0,0.002]
[1730123051733,0.17159869,69211.0,69201.0,0.005]
[1730123051975,0.17159869,69211.0,69197.0,0.21731099]
[1730123051976,0.03101768,69210.0,69209.0,0.144489]
[1730123052455,0.00672899,69210.0,69209.0,0.149489]
[1730123052678,0.004824,69211.0,69209.0,0.149489]
[1730123052679,0.000824,69211.0,69210.0,0.154487]
[1730123053399,0.0230982,69228.0,69218.0,0.005]
[1730123053400,0.0180982,69228.0,69218.0,0.005]
[1730123053641,0.21731099,69226.0,69223.0,0.144459]
[1730123053850,0.02428371,69227.0,69210.0,0.15050381]
[1730123053851,0.02428371,69225.0,69212.0,0.002]
[1730123054059,0.02428371,69224.0,69222.0,0.144462]
[1730123054301,0.02428371,69223.0,69220.0,0.144466]
[1730123054541,0.02428371,69222.0,69221.0,0.37622159]
[1730123054776,0.02428371,69222.0,69221.0,0.1589106]
[1730123055012,0.02428371,69222.0,69221.0,0.144464]
[1730123056356,0.02928371,69222.0,69221.0,0.146464]
[1730123056571,0.05191688,69222.0,69221.0,0.146464]
[1730123057413,0.02763552,69222.0,69221.0,0.146464]
[1730123060349,0.02763552,69222.0,69221.0,0.002]
[1730123060560,0.03436478,69222.0,69221.0,0.146464]
[1730123060768,0.02763552,69222.0,69221.0,0.146464]
[1730123060976,0.005,69222.0,69221.0,0.148464]
[1730123062468,0.005,69222.0,69221.0,0.153464]
[1730123063116,0.0180982,69228.0,69227.0,0.144452]
[1730123063375,0.02487122,69228.0,69227.0,0.146452]
[1730123063598,0.02487122,69228.0,69227.0,0.40958928]
[1730123063848,0.0180982,69228.0,69227.0,0.156452]
[1730123064063,0.0180982,69228.0,69227.0,0.154452]
[1730123064553,0.0180982,69228.0,69227.0,0.156452]
[1730123065485,0.0180982,69228.0,69227.0,0.56009309]
[1730123065957,0.0200982,69228.0,69227.0,0.156452]
[1730123066187,0.0230982,69228.0,69227.0,0.157452]
[1730123066412,0.0230982,69228.0,69227.0,0.156452]
[1730123066413,0.0180982,69228.0,69227.0,0.156452]
[1730123066631,0.0200982,69228.0,69227.0,0.156452]
[1730123067120,0.0200982,69228.0,69227.0,0.30695581]
[1730123067380,0.0150982,69228.0,69227.0,0.56009309]
[1730123067889,0.0150982,69228.0,69205.0,0.288995]
[1730123067890,0.0150982,69228.0,69180.0,0.001648]
[1730123067891,0.154531,69189.0,69180.0,0.001648]
[1730123068169,0.174548,69181.0,69180.0,0.001648]
[1730123068370,0.015,69157.0,69156.0,0.86670759]
[1730123068634,0.27513728,69157.0,69156.0,0.86670759]
[1730123069065,0.28190865,69157.0,69156.0,0.86670759]
[1730123069527,0.161608,69152.0,69151.0,0.001636]
[1730123069780,0.31211181,69152.0,69151.0,0.001636]
[1730123070007,0.02177038,69152.0,69151.0,0.001636]
[1730123070251,0.02177038,69152.0,69151.0,0.05649417]
[1730123070252,0.01677038,69152.0,69151.0,0.05649417]
[1730123070473,0.01677038,69152.0,69151.0,0.001636]
[1730123070474,0.02377038,69152.0,69151.0,0.001636]
[1730123070681,0.42151566,69152.0,69151.0,0.001636]
[1730123070971,0.57501947,69152.0,69151.0,0.002636]
[1730123071195,0.59001947,69152.0,69151.0,0.002636]
[1730123071414,0.58577295,69152.0,69151.0,0.002636]
[1730123071676,0.57501947,69152.0,69151.0,0.002636]
[1730123072158,0.57701947,69152.0,69151.0,0.003636]
[1730123072616,0.43241147,69152.0,69151.0,0.003636]
[1730123073101,0.57701947,69152.0,69151.0,0.003636]
[1730123073983,0.70906262,69152.0,69151.0,0.003636]
[1730123074455,0.59201947,69152.0,69151.0,0.003636]
[1730123074712,0.57701947,69152.0,69151.0,0.003636]
[1730123074923,0.43241147,69152.0,69151.0,0.003636]
[1730123075133,0.57701947,69152.0,69151.0,0.003636]
[1730123075367,0.59967987,69152.0,69151.0,0.003636]
[1730123075601,0.34654259,69152.0,69151.0,0.003636]
[1730123076027,0.33977221,69152.0,69151.0,0.003636]
[1730123076692,0.33982221,69152.0,69151.0,0.003636]
[1730123080144,0.31716181,69152.0,69151.0,0.003636]
[1730123082488,0.33216181,69152.0,69151.0,0.003636]
[1730123082698,0.43296181,69152.0,69151.0,0.003636]
[1730123082937,0.174621,69146.0,69145.0,0.21691503]
[1730123083182,0.32712481,69146.0,69145.0,0.21691503]
[1730123083402,0.31212481,69146.0,69145.0,0.21691503]
[1730123083656,0.16750381,69146.0,69145.0,0.21691503]
[1730123084111,0.16750381,69146.0,69142.0,0.001644]
[1730123084112,0.012,69143.0,69142.0,0.001644]
[1730123085040,0.017,69143.0,69142.0,0.001644]
[1730123085729,0.024,69143.0,69142.0,0.002644]
[1730123085953,0.029,69143.0,69142.0,0.002644]
[1730123086219,0.017,69143.0,69142.0,0.001644]
[1730123086635,0.023,69143.0,69142.0,0.002644]
[1730123086845,0.032,69143.0,69142.0,0.003644]
[1730123087067,0.023,69143.0,69142.0,0.002644]
[1730123087509,0.028,69143.0,69142.0,0.002644]
[1730123087933,0.017,69143.0,69142.0,0.001644]
[1730123088147,0.02,69143.0,69142.0,0.001644]
[1730123088362,0.36056701,69143.0,69142.0,0.001644]
[1730123088587,0.35756701,69143.0,69142.0,0.001644]
[1730123088813,0.31218081,69143.0,69142.0,0.001644]
[1730123089268,0.31918081,69143.0,69142.0,0.001644]
[1730123089500,0.17455381,69143.0,69142.0,0.001644]
[1730123089691,0.31918081,69143.0,69142.0,0.001644]
[1730123091047,0.40944809,69143.0,69142.0,0.001644]
[1730123091260,0.31918081,69143.0,69142.0,0.001644]
[1730123093064,0.32418081,69143.0,69142.0,0.001644]
[1730123094710,0.17955381,69143.0,69142.0,0.001644]
[1730123094926,0.17455381,69143.0,69142.0,0.001644]
[1730123096278,0.18532795,69143.0,69142.0,0.001644]
[1730123096493,0.03482414,69143.0,69142.0,0.001644]
[1730123096730,0.05748526,69143.0,69142.0,0.001644]
[1730123097431,0.36615408,69143.0,69142.0,0.001644]
[1730123097664,0.42871118,69143.0,69142.0,0.001644]
[1730123098366,0.43371118,69143.0,69142.0,0.001644]
[1730123098615,0.73349136,69143.0,69142.0,0.001644]
[1730123098829,0.73349136,69143.0,69133.0,0.001636]
[1730123098830,0.45477528,69138.0,69133.0,0.001636]
[1730123099042,0.62759124,69138.0,69133.0,0.001636]
[1730123099305,0.199646,69134.0,69133.0,0.001636]
[1730123099555,0.199646,69134.0,69101.0,0.21691503]
[1730123099556,0.45280428,69124.0,69123.0,0.21691503]
[1730123099800,0.45280428,69124.0,69101.0,0.21691503]
[1730123099802,0.199684,69116.0,69101.0,0.21691503]
[1730123100047,0.87972123,69116.0,69101.0,0.21691503]
[1730123100274,0.176694,69111.0,69101.0,0.21691503]
[1730123100506,1.73604504,69111.0,69101.0,0.21691503]
[1730123100728,0.174713,69102.0,69101.0,0.21691503]
[1730123100954,0.36099095,69102.0,69101.0,0.21691503]
[1730123101208,0.17827795,69102.0,69101.0,0.21691503]
[1730123101455,0.17827795,69102.0,69094.0,0.25313728]
[1730123101456,0.002,69095.0,69094.0,0.25313728]
[1730123101692,0.002,69095.0,69081.0,0.291149]
[1730123101693,0.017,69094.0,69089.0,0.25313728]
[1730123101955,0.02777414,69094.0,69084.0,0.25313728]
[1730123102200,0.02777414,69094.0,69081.0,0.001636]
[1730123102201,0.007,69082.0,69081.0,0.001636]
[1730123102444,0.017,69082.0,69081.0,0.001636]
[1730123102669,0.01,69082.0,69081.0,0.001636]
[1730123102896,0.005,69086.0,69082.0,0.289507]
[1730123103138,0.005,69086.0,69084.0,0.25313728]
[1730123103579,0.005,69086.0,69085.0,0.144749]
[1730123104268,0.001,69086.0,69085.0,0.144749]
[1730123104491,0.006,69086.0,69085.0,0.144749]
[1730123104730,0.005,69086.0,69082.0,0.38317748]
[1730123104948,0.002,69085.0,69082.0,0.38317748]
[1730123105205,0.007,69085.0,69082.0,0.52793248]
[1730123105435,0.005,69083.0,69081.0,0.001636]
[1730123105727,0.015,69082.0,69081.0,0.001636]
[1730123105990,0.1779303,69082.0,69081.0,0.001636]
[1730123106229,0.32843411,69082.0,69081.0,0.001636]
[1730123106474,0.31225881,69082.0,69081.0,0.001636]
[1730123106684,0.32802789,69082.0,69081.0,0.001636]
[1730123106925,0.32302789,69082.0,69081.0,0.008636]
[1730123107152,0.02776908,69082.0,69081.0,0.008636]
[1730123107380,0.017,69082.0,69081.0,0.001636]
[1730123107611,0.16850381,69082.0,69081.0,0.009636]
[1730123108073,0.17826594,69082.0,69081.0,0.001636]
[1730123108352,0.17251692,69082.0,69081.0,0.001636]
[1730123108587,0.01,69088.0,69081.0,0.38481348]
[1730123108588,0.01,69085.0,69081.0,0.38481348]
[1730123108822,0.005,69089.0,69085.0,0.289495]
[1730123109052,0.005,69091.0,69090.0,0.144738]
[1730123109278,0.005,69092.0,69089.0,0.289481]
[1730123109560,5e-05,69100.0,69088.0,0.38317748]
[1730123109561,0.005,69099.0,69090.0,0.00289454]
[1730123109787,5e-05,69100.0,69099.0,0.52789648]
[1730123110726,0.002,69113.0,69108.0,0.144701]
[1730123110959,0.005,69134.0,69108.0,0.144701]
[1730123110960,0.005,69117.0,69108.0,0.52787848]
[1730123111187,0.005,69118.0,69108.0,0.38317748]
[1730123111445,0.00505,69120.0,69119.0,0.144678]
[1730123111667,0.00505,69120.0,69116.0,0.38317748]
[1730123111668,0.005,69119.0,69116.0,0.38317748]
[1730123111895,5e-05,69120.0,69119.0,0.144678]
[1730123112129,5e-05,69120.0,69119.0,0.14757123]
[1730123112352,0.00205,69120.0,69116.0,0.38317748]
[1730123112808,0.00205,69120.0,69119.0,0.001]
[1730123113035,0.00205,69120.0,69117.0,0.289361]
[1730123113266,0.00205,69120.0,69119.0,0.153678]
[1730123113267,0.00105,69120.0,69119.0,0.153678]
[1730123113727,0.00105,69120.0,69118.0,0.289359]
[1730123113955,0.00105,69120.0,69117.0,0.289361]
[1730123113956,0.00205,69120.0,69119.0,0.144678]
[1730123114183,0.00105,69120.0,69116.0,0.39317748]
[1730123114416,0.00205,69120.0,69119.0,0.008]
[1730123114642,0.00405,69120.0,69119.0,0.008]
[1730123114864,0.00405,69120.0,69119.0,0.152678]
[1730123115100,0.00405,69120.0,69119.0,0.008]
[1730123115340,0.00905,69120.0,69119.0,0.008]
[1730123115578,0.00905,69120.0,69116.0,0.01]
[1730123115579,0.002,69117.0,69116.0,0.01]
[1730123115800,0.002,69116.0,69112.0,0.144691]
[1730123116154,0.002,69116.0,69110.0,0.60009251]
[1730123116155,0.002,69113.0,69110.0,0.52787348]
[1730123116398,0.002,69113.0,69102.0,0.21691503]
[1730123116399,0.005,69109.0,69103.0,0.38317748]
[1730123116666,0.005,69109.0,69081.0,0.001636]
[1730123116667,0.005,69102.0,69097.0,0.46117748]
[1730123116894,0.005,69102.0,69081.0,0.001636]
[1730123116895,0.007,69095.0,69094.0,0.21691503]
[1730123117559,0.005,69096.0,69091.0,0.38317748]
[1730123117560,0.002,69092.0,69091.0,0.38317748]
[1730123117809,0.002,69092.0,69043.0,0.08720773]
[1730123117810,0.01,69086.0,69083.0,0.0806]
[1730123118026,0.01,69086.0,69063.0,0.0355]
[1730123118027,0.017,69082.0,69080.0,0.21855903]
[1730123118706,0.017,69082.0,69080.0,0.001644]
[1730123118923,0.16750381,69082.0,69080.0,0.001644]
[1730123119671,0.16750381,69082.0,69081.0,0.146393]
[1730123119672,0.01,69082.0,69081.0,0.146393]
[1730123119929,0.01,69086.0,69085.0,0.144749]
[1730123120169,0.005,69085.0,69084.0,0.144751]
[1730123120398,0.01,69084.0,69083.0,0.52793048]
[1730123120659,0.007,69085.0,69084.0,0.144751]
[1730123120873,0.01,69103.0,69084.0,0.144751]
[1730123120874,0.002,69092.0,69084.0,0.1533986]
[1730123121128,0.002,69092.0,69091.0,0.52791348]
[1730123121129,0.007,69092.0,69091.0,0.52791348]
[1730123121562,0.005,69095.0,69094.0,0.14473]
[1730123121794,0.005,69093.0,69092.0,0.144733]
[1730123122027,0.005,69093.0,69091.0,0.38317748]
[1730123122028,0.005,69092.0,69091.0,0.38317748]
[1730123122235,0.007,69092.0,69091.0,0.38317748]
[1730123122914,0.012,69092.0,69091.0,0.38317748]
[1730123123144,0.002,69085.0,69084.0,0.38317748]
[1730123123353,0.002,69087.0,69084.0,0.52792848]
[1730123123572,0.005,69088.0,69085.0,0.289497]
[1730123123827,0.001,69093.0,69085.0,0.289497]
[1730123123828,0.002,69093.0,69085.0,0.00289473]
[1730123124050,0.0017,69120.0,69085.0,0.00289473]
[1730123124283,0.01215266,70010.0,69085.0,0.00289473]
[1730123124579,0.01215266,70010.0,69181.0,0.164548]
[1730123124580,0.50826067,69182.0,69181.0,0.164548]
[1730123124809,0.50826067,69182.0,69172.0,0.01]
[1730123124810,0.86847648,69160.0,69150.0,0.04267419]
[1730123125048,0.43482648,69180.0,69179.0,0.144552]
[1730123125281,0.43482648,69180.0,69159.0,0.106]
[1730123125282,0.43482648,69180.0,69168.0,0.38317748]
[1730123125508,0.005,69180.0,69179.0,0.06401129]
[1730123125737,0.005,69195.0,69180.0,0.2891]
[1730123125972,0.86847648,69181.0,69179.0,0.10668549]
[1730123126225,0.005,69182.0,69181.0,0.4286]
[1730123126455,0.005,69183.0,69181.0,0.4286]
[1730123126695,0.005,69190.0,69189.0,0.144531]
[1730123126919,0.005,69190.0,69187.0,0.144534]
[1730123127149,0.005,69190.0,69189.0,0.43859]
[1730123127396,0.005,69193.0,69189.0,0.43859]
[1730123127614,0.01,69193.0,69190.0,0.144528]
[1730123127845,0.01,69193.0,69191.0,0.144527]
[1730123128072,0.005,69192.0,69191.0,0.43858]
[1730123128294,0.01,69192.0,69191.0,0.43858]
[1730123129213,0.005,69192.0,69191.0,0.583107]
[1730123129407,0.01,69192.0,69191.0,0.43858]
[1730123129808,0.16050381,69192.0,69191.0,0.45258]
[1730123130162,0.16150381,69192.0,69191.0,0.46658]
[1730123130388,0.31102881,69192.0,69191.0,0.38222664]
[1730123130815,0.33485381,69192.0,69191.0,0.38222664]
[1730123131322,0.33485381,69192.0,69191.0,0.39622664]
[1730123131323,0.34585381,69192.0,69191.0,0.39622664]
[1730123131536,0.34585381,69192.0,69191.0,0.028]
[1730123132187,0.34485381,69192.0,69191.0,0.014]
[1730123132420,0.01,69172.0,69171.0,0.21678963]
[1730123132875,0.01,69172.0,69169.0,0.38317748]
[1730123133305,0.005,69170.0,69169.0,0.38317748]
[1730123133520,0.01,69170.0,69169.0,0.38317748]
[1730123133958,0.01,69170.0,69163.0,0.38317748]
[1730123134190,0.005,69158.0,69157.0,0.59996711]
[1730123134633,0.005,69158.0,69157.0,0.38317748]
[1730123135760,0.005,69154.0,69151.0,0.67239848]
[1730123135984,0.005,69154.0,69153.0,0.144606]
[1730123136655,0.001,69158.0,69156.0,0.1446]
[1730123136880,0.001,69158.0,69157.0,0.53177548]
[1730123136881,0.002,69158.0,69157.0,0.53177548]
[1730123137293,0.001,69158.0,69157.0,0.52777548]
[1730123139028,0.005,69159.0,69158.0,0.144596]
[1730123139473,0.005,69159.0,69158.0,0.578386]
[1730123140352,0.005,69165.0,69164.0,0.144583]
[1730123140630,0.21678963,69181.0,69164.0,0.81692748]
[1730123140846,0.000825,69192.0,69179.0,0.144552]
[1730123140847,0.21678963,69180.0,69179.0,0.144552]
[1730123141052,0.21678963,69180.0,69179.0,0.52772948]
[1730123141262,0.005,69184.0,69180.0,0.289098]
[1730123141707,0.005,69186.0,69181.0,0.578197]
[1730123141935,0.000825,69192.0,69181.0,0.43365]
[1730123141936,0.005825,69192.0,69181.0,0.43365]
[1730123142176,0.005,69187.0,69181.0,0.578197]
[1730123142410,0.005825,69192.0,69182.0,0.21678963]
[1730123142616,0.005825,69192.0,69181.0,0.43365]
[1730123142617,0.005,69187.0,69183.0,0.578176]
[1730123142826,0.005,69187.0,69184.0,0.289081]
[1730123143085,0.000824,69191.0,69174.0,0.21678963]
[1730123143086,0.005824,69191.0,69187.0,0.289071]
[1730123143298,0.005824,69191.0,69186.0,0.38317748]
[1730123143299,0.005,69189.0,69186.0,0.38317748]
[1730123143498,0.005,69190.0,69187.0,0.578145]
[1730123143937,0.000824,69191.0,69187.0,0.578145]
[1730123143938,0.000824,69191.0,69187.0,0.43361]
[1730123144156,0.000824,69191.0,69190.0,0.144529]
[1730123144389,0.000824,69191.0,69188.0,0.144533]
[1730123144600,0.000824,69191.0,69187.0,0.43361]
[1730123144601,0.000824,69191.0,69190.0,0.144529]
[1730123144801,0.000824,69191.0,69187.0,0.578143]
[1730123145238,0.000824,69191.0,69187.0,0.578145]
[1730123145466,0.000824,69191.0,69187.0,0.43361]
[1730123145689,0.000824,69191.0,69187.0,0.580145]
[1730123146122,0.000824,69191.0,69188.0,0.144533]
[1730123146356,0.000824,69191.0,69190.0,0.144529]
[1730123146615,0.000824,69191.0,69188.0,0.289067]
[1730123146824,0.000824,69191.0,69188.0,0.144533]
[1730123147051,0.000824,69191.0,69187.0,0.580145]
[1730123147268,0.005,69188.0,69187.0,0.43761]
[1730123147685,0.005,69188.0,69187.0,0.43561]
[1730123148772,0.005,69188.0,69187.0,0.43361]
[1730123149192,0.005,69189.0,69188.0,0.001]
[1730123149604,0.005,69189.0,69187.0,0.43361]
[1730123150056,0.005,69189.0,69187.0,0.4934252]
[1730123150295,0.005,69188.0,69187.0,0.6399602]
[1730123150541,0.000824,69191.0,69190.0,0.144529]
[1730123150797,0.00259786,69202.0,69195.0,0.289037]
[1730123151030,0.00259786,69202.0,69196.0,0.43355]
[1730123151256,0.00259786,69207.0,69200.0,0.38317748]
[1730123151591,0.000819,69221.0,69206.0,0.38317748]
[1730123151592,0.00259786,69215.0,69206.0,0.38317748]
[1730123151776,0.00259786,69215.0,69196.0,0.43355]
[1730123151777,0.000819,69221.0,69220.0,0.144466]
[1730123151989,0.000819,69221.0,69220.0,0.38317748]
[1730123152202,0.000819,69221.0,69220.0,0.4334]
[1730123152434,0.00341686,69221.0,69220.0,0.4334]
[1730123152648,0.15392067,69221.0,69220.0,0.4334]
[1730123153062,0.00341686,69221.0,69220.0,0.47674]
[1730123153287,0.00341686,69221.0,69220.0,0.630206]
[1730123153288,0.001819,69221.0,69220.0,0.630206]
[1730123153723,0.001819,69221.0,69220.0,0.621206]
[1730123153724,0.000819,69221.0,69220.0,0.621206]
[1730123153945,0.000819,69221.0,69220.0,0.4334]
[1730123154635,0.000819,69221.0,69220.0,0.577866]
[1730123155709,0.00017505,69239.0,69220.0,0.4334]
[1730123155934,0.15050381,69238.0,69221.0,0.00788917]
[1730123156149,0.15050381,69238.0,69225.0,0.144454]
[1730123156372,0.15050381,69238.0,69226.0,0.144454]
[1730123156568,0.15050381,69238.0,69228.0,0.21678963]
[1730123156774,0.15050381,69238.0,69229.0,0.144448]
[1730123156986,0.15050381,69238.0,69229.0,0.43334]
[1730123157634,0.15550381,69238.0,69229.0,0.43334]
[1730123158092,0.005,69238.0,69229.0,0.43334]
[1730123158573,0.15050381,69237.0,69229.0,0.43434]
[1730123158802,0.15050381,69237.0,69230.0,0.21678963]
[1730123158803,0.144433,69236.0,69230.0,0.21678963]
[1730123159021,0.15050381,69235.0,69230.0,0.21678963]
[1730123159270,0.00683381,69234.0,69229.0,0.43434]
[1730123159478,0.00683381,69234.0,69229.0,0.43334]
[1730123159479,0.144446,69230.0,69229.0,0.43334]
[1730123159704,0.31794981,69230.0,69229.0,0.43334]
[1730123159913,0.33479017,69230.0,69229.0,0.43534]
[1730123160121,0.144481,69213.0,69205.0,0.21678963]
[1730123160354,0.15050381,69213.0,69205.0,0.21678963]
[1730123160582,0.15734371,69213.0,69205.0,0.21678963]
[1730123161061,0.15734371,69213.0,69212.0,0.36127263]
[1730123161062,0.0068399,69213.0,69212.0,0.36127263]
[1730123161303,0.02263751,69226.0,69210.0,0.38817748]
[1730123161523,0.15050381,69225.0,69212.0,0.001]
[1730123161980,0.15050381,69225.0,69214.0,0.21678963]
[1730123162187,0.02263354,69237.0,69221.0,0.288926]
[1730123162401,0.001,69226.0,69225.0,0.144454]
[1730123162831,0.15050381,69236.0,69217.0,0.005]
[1730123163083,0.15050381,69236.0,69223.0,0.288921]
[1730123163310,0.001,69225.0,69224.0,0.15977905]
[1730123163753,0.001,69225.0,69224.0,0.144458]
[1730123164420,0.001,69225.0,69224.0,0.149458]
[1730123164652,0.004,69225.0,69223.0,0.005]
[1730123164899,0.004,69225.0,69205.0,0.50578463]
[1730123164900,0.004,69225.0,69218.0,0.288942]
[1730123165140,0.004,69225.0,69217.0,0.21678963]
[1730123165141,0.004,69225.0,69224.0,0.21678963]
[1730123165359,0.004,69225.0,69224.0,0.144458]
[1730123166026,0.00017505,69239.0,69230.0,0.144445]
[1730123166259,0.00017505,69239.0,69218.0,0.288942]
[1730123166260,0.15067886,69239.0,69226.0,0.288908]
[1730123166477,0.15067886,69239.0,69219.0,0.0782]
[1730123166478,0.00017505,69239.0,69236.0,0.288865]
[1730123166714,0.00017505,69239.0,69238.0,0.53260648]
[1730123167010,0.00017505,69239.0,69238.0,0.144429]
[1730123167230,0.00017505,69239.0,69232.0,0.38317748]
[1730123167231,0.00017505,69239.0,69229.0,0.005]
[1730123167449,0.00017505,69239.0,69225.0,0.21678963]
[1730123167450,0.15050381,69238.0,69233.0,0.21678963]
[1730123167656,0.14460305,69239.0,69234.0,0.21678963]
[1730123167657,0.00017505,69239.0,69234.0,0.21678963]
[1730123167868,0.01017505,69239.0,69236.0,0.001]
[1730123168070,0.01917505,69239.0,69236.0,0.001]
[1730123168733,0.15050381,69238.0,69236.0,0.001]
[1730123169156,0.15050381,69238.0,69234.0,0.001]
[1730123169375,0.29493481,69238.0,69234.0,0.001]
[1730123169585,0.29493481,69238.0,69229.0,0.013]
[1730123169586,0.15050381,69238.0,69229.0,0.013]
[1730123169803,0.15050381,69238.0,69236.0,0.001]
[1730123170043,0.00624118,69240.0,69237.0,0.288862]
[1730123170260,0.002,69238.0,69236.0,0.0651868]
[1730123170476,0.00624118,69240.0,69236.0,0.04340784]
[1730123170724,0.00624118,69240.0,69237.0,0.144431]
[1730123170954,0.00624118,69240.0,69236.0,0.04340784]
[1730123171153,0.00624118,69240.0,69236.0,0.145431]
[1730123171362,0.00624118,69240.0,69239.0,0.144427]
[1730123171763,0.00624118,69240.0,69235.0,0.288871]
[1730123172001,0.00624118,69240.0,69234.0,0.04256385]
[1730123172207,0.00624118,69240.0,69239.0,0.144427]
[1730123172646,0.00924118,69240.0,69237.0,0.288862]
[1730123172858,0.00924118,69240.0,69238.0,0.144428]
[1730123173308,0.00924118,69240.0,69237.0,0.144431]
[1730123173521,0.15974499,69240.0,69232.0,0.04256385]
[1730123173763,0.15050381,69239.0,69231.0,0.04256385]
[1730123173963,0.15050381,69239.0,69227.0,0.21678963]
[1730123173964,0.07599799,69239.0,69227.0,0.21678963]
[1730123174191,0.288859,69238.0,69228.0,0.144448]
[1730123174407,0.288859,69238.0,69223.0,0.001646]
[1730123174408,0.15050381,69237.0,69223.0,0.001646]
[1730123174644,0.144458,69224.0,69223.0,0.001646]
[1730123174860,0.29496181,69224.0,69223.0,0.001646]
[1730123175717,0.15050381,69224.0,69223.0,0.001646]
[1730123175928,0.29496181,69224.0,69223.0,0.001646]
[1730123176808,0.29596181,69224.0,69223.0,0.001646]
[1730123177073,0.30096181,69224.0,69223.0,0.001646]
[1730123177508,0.31442353,69224.0,69223.0,0.001646]
[1730123177733,0.31442353,69224.0,69207.0,0.005]
[1730123177994,0.31442353,69224.0,67677.0,0.23493282]
[1730123177995,0.03,69182.0,69181.0,0.001648]
[1730123178224,0.03,69182.0,69180.0,0.06385906]
[1730123178225,0.174548,69181.0,69180.0,0.06385906]
[1730123178443,0.174548,69181.0,69152.0,0.08514541]
[1730123178444,0.005,69160.0,69152.0,0.08514541]
[1730123178681,0.17305372,69160.0,69137.0,0.289278]
[1730123178894,0.159592,69160.0,69145.0,0.144623]
[1730123179108,0.159592,69160.0,69140.0,0.289265]
[1730123179329,0.159592,69160.0,69141.0,0.144631]
[1730123179560,0.159592,69160.0,69137.0,0.289278]
[1730123179786,0.005,69160.0,69158.0,0.38482548]
[1730123180054,0.005,69167.0,69166.0,0.144579]
[1730123180268,0.005,69188.0,69166.0,0.03864785]
[1730123180485,0.289071,69187.0,69162.0,0.289174]
[1730123180714,0.145546,69182.0,69181.0,0.009]
[1730123180930,0.38317748,69189.0,69159.0,0.001636]
[1730123180931,0.144573,69170.0,69159.0,0.001636]
[1730123181154,0.144557,69177.0,69160.0,0.289184]
[1730123181391,0.001,69167.0,69166.0,0.006]